{"text_format":"2","workbook":"xlsx","n_sheets":1,"sheets":["Hoja1"],"not_rendered":{"charts":0,"images":0,"macros":0,"external_links":0,"defined_names":0,"comments":0,"pivot_tables":0},"unopened":[],"bounds":{"document_bytes":16777216,"sheet_cells":100000,"run_cost":"one","rows_first":2000,"rows_last":500,"rows_between":2000,"halvings":0,"cell_chars":16384,"cell_head_chars":4096},"cells_cut":0,"cells_raw":0,"read":"whole","date_system":"1900"}

{"sheet":"Hoja1","index":0,"n_rows":23,"n_cols":28,"rows_kept":23,"cut":false,"hidden":false,"merged":[[10,0,10,9]]}
{"$rows_empty":8}
["TELEFONICA MULTIMEDIA S.A.C.-2017-7 ATRIBUCIÓN DE GASTOS A LAS LINEAS DE NEGOCIO-30052018"]
[]
["INFORME 7: ATRIBUCIÓN DE GASTOS A LAS LINEAS DE NEGOCIO"]
[]
["Periodo de reporte: Al 31 de Diciembre 2017"]
[]
["Expresado en Miles de Nuevos Soles","1.Acceso Instalación Telefonía Fija de Abonado Urbano","2.Prestación del servicio de voz Telefonía Fija local desde Abonado Urbano","3.Prestación del servicio de voz Telefonía Fija LD desde Abonado Urbano","4.Prestación del servicio de voz Telefonía Fija Local desde TUP Urbano","5.Prestación del servicio de voz Telefonía Fija LD desde TUP Urbano","6.Acceso Instalación Telefonía Fija de Abonado Rural","7.Prestación del servicio de voz Telefonía Fija Local desde Abonado Rural","8.Prestación del servicio de voz Telefonía Fija LD desde Abonado Rural","9.Prestación del servicio de voz Telefonía Fija Local desde TUP Rural","10.Prestación del servicio de voz Telefonía Fija LD desde TUP Rural","11.Instalación Televisión de Paga","12.Prestación de servicios Televisión de Paga","13.Instalación Internet Fijo","14.Prestación de servicios Internet Fijo","15.Prestación de servicio voz móvil por Telefonía Móvil","16.Mensajes de Texto Telefonía Móvil","17.Roaming Internacional por Telefonía Móvil","18.Prestación de Internet Móvil","19.Servicios Suplementarios","20.Servicios de valor añadido (No incluye Internet)","21.Suministro de Equipos","22.Instalación para Alquiler de circuitos y Transmisión de Datos para clientes privados y otros operadores","23.Alquiler de Circuitos y Transmisión de Datos a clientes privados y otros operadores","24.Provisión de acceso a EEDE","25.Interconexión","26.Otros","Total"]
["Gastos de Personal",0,0,0,0,0,0,0,0,0,0,0.20509001294288548,270.20001277555656,0,479.38259867709786,0,0,0,0,0,0,4.244512045907042,0,0,0,0,2.6231164884962093,{"$f":"SUM(B16:AA16)","v":756.65533000000062}]
["Gastos Generales y Administrativos",0,0,0,0,0,0,0,0,0,0,12361.911166779599,559680.88559246063,0,248268.05988371963,0,0,0,0,0,0,2042.6961382642071,0,0,0,0,1259.1899287759024,823612.74271000002]
["Depreciación",0,0,0,0,0,0,0,0,0,0,0,16251.67817906995,0,21656.099150252543,0,0,0,0,0,0,9918.2661042013733,0,0,0,0,0,47826.043433523861]
["Amortización",0,0,0,0,0,0,0,0,0,0,0,1096.4319437580064,0,0,0,0,0,0,0,0,0,0,0,0,0,0,1096.4319437580064]
["Existencias",0,0,0,0,0,0,0,0,0,0,135.83916000000235,0,0,0,0,0,0,0,0,0,40064.186240001247,0,0,0,0,0,40200.02540000125]
["Provisión por desvalorización de activos",0,0,0,0,0,0,0,0,0,0,33.68754982874534,9457.6281650650853,0,10002.61446036246,0,0,0,0,0,0,697.19246195095309,0,0,0,0,430.86626279275822,20621.9889]
["Otros Gastos Operativos",0,0,0,0,0,0,0,0,0,0,123.47811645613156,-282.59652395145531,0,-286.58392255870967,0,0,0,0,0,0,-21.214146935280034,0,0,0,0,-13.110383010686615,-480.02686000000011]
["Total general",{"$f":"SUM(B16:B22)","v":0},{"$f":"SUM(C16:C22)","v":0},0,0,0,0,0,0,0,0,12655.121083077422,586474.22736917785,0,280119.57217045303,0,0,0,0,0,0,52705.371309528404,0,0,0,0,1679.5689250464704,{"$f":"SUM(B23:AA23)","v":933633.86085728311}]